fUST/lending_fUST_20240529
["ID","MTS","AMOUNT","RATE_DAILY","PERIOD"]
[328169386,1716991839454,-500.0,0.00030136,4]
[328169387,1716991839464,-500.0,0.00030136,4]
[328169388,1716991839477,-500.0,0.00030136,4]
[328169389,1716991839487,-500.0,0.00030136,4]
[328169390,1716991839497,-500.0,0.00030136,4]
[328169391,1716991839507,-500.0,0.00030136,4]
[328169393,1716991839517,-500.0,0.00030136,4]
[328169394,1716991839527,-500.0,0.00030136,4]
[328169396,1716991839537,-683.198466,0.0003031,2]
[328169398,1716991839547,-158.06628854,0.00030313,7]
[328169400,1716991839557,-165.31755603,0.000304,7]
[328169402,1716991839567,-500.0,0.0003041,4]
[328169404,1716991839577,-261.72,0.0003041,4]
[328169406,1716991839587,-155.72753798,0.0003041,7]
[328169408,1716991839596,-500.0,0.0003041,4]
[328169410,1716991839606,-207.973,0.00030575,2]
[328169412,1716991839616,-151.0,0.00030629,7]
[328169414,1716991839625,-500.0,0.00030684,4]
[328169415,1716991839636,-500.0,0.00030684,4]
[328169416,1716991839646,-500.0,0.00030958,4]
[328169417,1716991839656,-569.28752518,0.00030958,4]
[328169418,1716991839666,-158.06628854,0.00031069,7]
[328169419,1716991839680,-158.06628854,0.00031206,7]
[328169420,1716991839690,-500.0,0.00031232,4]
[328169421,1716991839700,-158.06628854,0.00031307,7]
[328169422,1716991839710,-500.0,0.00031506,4]
[328169423,1716991839721,-151.0,0.00031722,7]
[328169424,1716991839730,-500.0,0.0003178,4]
[328169425,1716991839740,-449.01034019,0.00032,4]
[328169426,1716991839750,-520.75703956,0.00032,4]
[328169427,1716991839763,-500.0,0.00032054,4]
[328169428,1716991839772,-158.06628856,0.0003228,7]
[328169429,1716991839785,-500.0,0.00032328,4]
[328169430,1716991839797,-911.62637832,0.00032566,5]
[328169431,1716991839809,-500.0,0.00032602,4]
[328169432,1716991839821,-88888.0,0.00032746,5]
[328169433,1716991839833,-483.331934,0.00032746,2]
[328169434,1716991839844,-483.331934,0.00032746,2]
[328169435,1716991839855,-151.0,0.00032746,2]
[328169436,1716991839866,-151.0,0.00032746,2]
[328169437,1716991839877,-151.0,0.00032746,2]
[328169438,1716991839887,-205.278208,0.00032746,2]
[328169439,1716991839899,-205.278208,0.00032746,2]
[328169440,1716991839910,-151.0,0.00032815,7]
[328169441,1716991839921,-151.0,0.00032815,7]
[328169442,1716991839932,-4229.78307947,0.00032839,2]
[328169443,1716991839944,-4985.83,0.00032845,5]
[328169444,1716991839955,-4985.83,0.00032845,5]
[328169445,1716991839965,-4985.83,0.00032868,5]
[328169446,1716991839977,-500.0,0.00032876,4]
[328169447,1716991839987,-500.0,0.00032894,2]
[328169448,1716991839997,-160.0,0.000329,8]
[328169449,1716991840008,-31549.75803471,0.00032988,30]
[328169450,1716991840019,-26021.826119,0.00032988,2]
[328169451,1716991840031,-251.0708813,0.00032988,120]
[328169452,1716991840041,-154.82093995,0.00032988,30]
[328169453,1716991840052,-4985.83,0.00032991,5]
[328169454,1716991840063,-4985.83,0.00032991,5]
[328169455,1716991840075,-300.0,0.00033,7]
[328169456,1716991840087,-240.57416826,0.00033,7]
[328169457,1716991840098,-500.0,0.0003315,4]
[328169458,1716991840109,-209.52031279,0.00033278,2]
[328169459,1716991840120,-500.0,0.00033424,4]
[328169460,1716991840131,-180.0,0.0003363,2]
[328169461,1716991840142,-500.0,0.0003363,2]
[328169462,1716991840153,-500.0,0.0003363,2]
[328169463,1716991840163,-500.0,0.0003363,2]
[328169464,1716991840175,-150.81901718,0.00033666,2]
[328169465,1716991840186,-500.0,0.00033698,4]
[328169466,1716991840197,-15126.60968942,0.000338,30]
[328169467,1716991840208,-151.0,0.000338,2]
[328169468,1716991840218,-151.0,0.000338,2]
[328169469,1716991840230,-151.0,0.000338,2]
[328169470,1716991840241,-151.0,0.000338,2]
[328169471,1716991840252,-483.331934,0.000338,2]
[328169472,1716991840263,-483.331934,0.000338,2]
[328169473,1716991840274,-151.521974,0.000338,2]
[328169474,1716991840285,-151.0,0.000338,2]
[328169475,1716991840296,-151.0,0.000338,2]
[328169476,1716991840307,-205.278208,0.000338,2]
[328169477,1716991840317,-205.278208,0.000338,2]
[328169478,1716991840327,-155.18340364,0.00033898,4]
[328169479,1716991840337,-597.59122302,0.000339,30]
[328169480,1716991840347,-151.0,0.00033907,15]
[328169481,1716991840357,-151.0,0.00033907,15]
[328169482,1716991840368,-500.0,0.00033972,4]
[328169483,1716991840380,-246.31428103,0.00033997,30]
[328169484,1716991840390,-4985.83,0.00033998,5]
[328169485,1716991840400,-22338.24891259,0.00033999,2]
[328169486,1716991840412,-4985.83,0.00033999,5]
[328169487,1716991840422,-300.0,0.00034,9]
[328169488,1716991840433,-29056.15820637,0.00034,2]
[328169489,1716991840444,-301.63803436,0.00034232,4]
[328169490,1716991840454,-500.0,0.00034246,4]
[328169491,1716991840466,-500.0,0.0003452,4]
[328169492,1716991840476,-500.0,0.00034794,4]
[328169493,1716991840487,-1000.0,0.000348,3]
[328169494,1716991840498,-603.27606872,0.00034807,7]
[328169495,1716991840509,-880.54658908,0.00034894,4]
[328169496,1716991840521,-749.05667984,0.00034898,33]
[328169497,1716991840532,-4985.83,0.00034997,5]
[328169498,1716991840544,-187.42283178,0.00034998,4]
[328169499,1716991840556,-1691.31346537,0.00034998,4]
[328169500,1716991840566,-154.84515485,0.00034998,4]
[328169501,1716991840577,-155.0418613,0.00034998,4]
[328169502,1716991840588,-155.70748198,0.00034998,4]
[328169503,1716991840598,-162.76136217,0.00034998,2]
[328169504,1716991840608,-9020.07157767,0.00034998,4]
[328169505,1716991840617,-151.0,0.00034998,2]
[328169506,1716991840627,-151.0,0.00034998,2]
[328169507,1716991840637,-483.331934,0.00034998,2]
[328169508,1716991840646,-483.331934,0.00034998,2]
[328169509,1716991840656,-151.0,0.00034998,2]
[328169510,1716991840666,-205.278208,0.00034998,2]
[328169511,1716991840679,-205.278208,0.00034998,2]
[328169512,1716991840691,-4985.83,0.00034999,5]
[328169513,1716991840702,-4985.83,0.00034999,5]
[328169514,1716991840714,-4985.83,0.00034999,5]
[328169515,1716991840726,-4985.83,0.00034999,5]
[328169516,1716991840737,-4985.83,0.00034999,5]
[328169517,1716991840748,-4985.83,0.00034999,5]
[328169518,1716991840761,-4985.83,0.00034999,5]
[328169519,1716991840772,-4985.83,0.00034999,5]
[328169520,1716991840782,-4985.94715853,0.00034999,5]
[328169521,1716991840792,-230.86074498,0.00035,7]
[328169522,1716991840802,-94729.62184871,0.00035,30]
[328169523,1716991840817,-252856.24479267,0.00035,30]
[328169524,1716991840830,-6182.90951991,0.00035,30]
[328169534,1716991842727,-378.79359255,0.00034988,3]
[328169536,1716991842740,-261.546,0.00034988,3]
[328169543,1716991842853,-5992.59040745,0.00034988,3]
[328169544,1716991842864,-31307.09985642,0.00035,30]
[328169545,1716991842879,-961.24521157,0.00035,30]
[328169546,1716991842894,-6339.13691512,0.00035,30]
[328169547,1716991842959,-18944.5699064,0.00035,30]
[328169560,1716991844029,-656.00053528,0.00035,30]
[328169562,1716991844043,-436.04990954,0.00035,30]
[328169564,1716991844390,-46.35046367,0.00035,30]
[328169565,1716991844985,-43762.5760384,0.00035,30]
[328169619,1716991846926,-194.0753606,0.00020913,2]
[328169621,1716991846936,-14774.89653431,0.00035,30]
[328169646,1716991847156,-625.13212042,0.00035,30]
[328169648,1716991847167,-3475.15,0.00035,30]
[328169738,1716991848002,-2881.16572448,0.00035,30]
[328169766,1716991848527,273.37336231,9.9e-05,2]
[328169767,1716991856020,273.37336231,9.9e-05,2]
[328169768,1716991864897,273.37336231,9.9e-05,2]
[328169769,1716991873728,273.37336231,9.9e-05,2]
[328169770,1716991881958,273.37336231,9.9e-05,2]
[328169771,1716991890023,273.37336231,9.9e-05,2]
[328169772,1716991898750,154.95794333,9.9e-05,2]
[328169773,1716991903997,156.89663589,9.9e-05,2]
[328169774,1716991922002,156.84329891,9.9e-05,2]
[328169775,1716991959803,273.37336231,9.9e-05,2]
[328169776,1716991968684,799.38249379,9.9e-05,2]
[328169780,1716992404730,456.0641796,9.999e-05,2]
[328169783,1716992801142,-315.52461145,0.00013048,2]
[328169784,1716992838141,-159.22743012,0.00013046,2]
[328169785,1716992846107,-1416.68466484,0.00013045,2]
[328169786,1716992851108,-563.36726574,0.00013045,2]
[328169787,1716992851129,-1873.97508892,0.00013046,2]
[328169788,1716992851148,-2682.52983983,0.00013047,2]
[328169789,1716992851170,-2322.53432936,0.00013048,2]
[328169790,1716992851193,-2109.94083119,0.00013048,2]
[328169791,1716992851215,-41329.40448685,0.00013048,2]
[328169792,1716992851244,-976.46708549,0.00013048,2]
[328169793,1716992853164,-421.217252,0.00013048,2]
[328169796,1716992919006,283.67803753,9.999e-05,2]
[328169797,1716992946115,-799.9,0.00010959,2]
[328169798,1716992946139,-1764.90235211,0.00013033,2]
[328169799,1716992946159,-1044.09073715,0.00013046,2]
[328169800,1716992946181,-2032.26783808,0.00013047,2]
[328169801,1716992946202,-425.46752422,0.00013054,2]
[328169802,1716992946222,-283.67803753,0.00013065,2]
[328169803,1716992946241,-42025.13644457,0.00013065,2]
[328169804,1716992946261,-6546.55706634,0.00013066,2]
[328169805,1716992952312,685.47338776,9.999e-05,2]
[328169806,1716992957095,-160.41800127,0.00012967,2]
[328169807,1716992957117,-51166.0868058,0.00013066,2]
[328169808,1716992957141,-5792.95813968,0.00013067,2]
[328169809,1716992958168,-11087.14724192,0.00013067,2]
[328169810,1716992960116,-8019.8946184,0.00013067,2]
[328169811,1716992960138,-183.17052475,0.00017108,2]
[328169812,1716992960161,-154.82968734,0.00017412,2]
[328169813,1716992960191,-154.82968734,0.00017412,2]
[328169814,1716992960216,-154.82968734,0.00017412,2]
[328169815,1716992960240,-26438.1229204,0.00017417,2]
[328169816,1716992960264,-2034.2229243,0.00018158,2]
[328169817,1716992960288,-431.59730249,0.00019178,2]
[328169818,1716992960313,-589.28727101,0.00019178,2]
[328169869,1716993032118,-254.917,0.00019078,3]
[328169871,1716993032131,-330.69563187,0.00019078,3]
[328169873,1716993032142,-446.55305968,0.00019184,2]
[328169875,1716993032152,-250.0,0.00019464,2]
[328169877,1716993032161,-188.03544,0.00019568,2]
[328169879,1716993032170,-160.41800126,0.00019922,2]
[328169881,1716993032180,-194.0753606,0.00020066,2]
[328169883,1716993032190,-10482.055669,0.00020067,2]
[328169885,1716993032200,-274.99910967,0.00020907,2]
[328169888,1716993032210,-179.11240261,0.0002091,2]
[328169890,1716993032219,-9567.99465674,0.0002091,2]
[328169892,1716993032229,-703.25759255,0.0002091,2]
[328169894,1716993032241,-1497.86344925,0.0002091,2]
[328169896,1716993032250,-230.87532501,0.0002091,2]
[328169897,1716993032259,-215.91037311,0.00020911,2]
[328169900,1716993032269,-758.31809387,0.00020911,2]
[328169902,1716993032278,-529.00220034,0.00020911,2]
[328169904,1716993032287,-772.8946628,0.00020912,2]
[328169906,1716993032297,-1737.95881073,0.00020912,2]
[328169908,1716993032307,-1979.20914948,0.00020912,2]
[328169910,1716993032316,-1615.06045892,0.00020913,10]
[328169912,1716993032325,-1380.68332621,0.00021,2]
[328169914,1716993032335,-166.666666,0.00021918,2]
[328169916,1716993032344,-166.666666,0.00022431,2]
[328169917,1716993032354,-166.666666,0.00022944,2]
[328169918,1716993032364,-4699.30029575,0.00023,2]
[328169920,1716993032373,-166.666666,0.00023456,2]
[328169921,1716993032382,-166.666666,0.00023969,2]
[328169922,1716993032392,-169.412224,0.00024384,2]
[328169924,1716993032401,-655.312527,0.00024384,2]
[328169925,1716993032411,-166.666666,0.00024482,2]
[328169926,1716993032421,-5116.22426281,0.000247,9]
[328169927,1716993032430,-685.35873137,0.00024998,2]
[328169928,1716993032439,-3837.43040543,0.00024999,2]
[328169929,1716993032449,-22874.93521161,0.00025,2]
[328169930,1716993032459,-160.41800126,0.00026876,2]
[328169931,1716993032468,-620.84619903,0.00028515,2]
[328169932,1716993032478,-188.03544,0.00029351,2]
[328169933,1716993032492,-500.0,0.00030136,4]
[328169934,1716993032502,-169.412224,0.0003031,2]
[328169935,1716993032512,-655.312527,0.0003031,2]
[328169936,1716993032522,-500.0,0.0003041,4]
[328169937,1716993032531,-500.0,0.00030684,4]
[328169938,1716993032544,-229.54919943,0.00030958,4]
[328169939,1716993032554,-364.52992769,0.00032,4]
[328169940,1716993032563,-449.01034019,0.00032272,4]
[328169941,1716993032573,-20684.328221,0.000324,2]
[328169942,1716993032583,-7801.21,0.0003289,3]
[328169943,1716993032593,-5417.51,0.0003289,3]
[328169944,1716993032602,-5540.57119741,0.000329,3]
[328169982,1716993038091,-180.0,0.00020909,2]
[328169984,1716993038100,-189.21805245,0.00020909,2]
[328169986,1716993038111,-184.9702725,0.00020909,2]
[328169988,1716993038121,-500.0,0.00020909,2]
[328169990,1716993038132,-574.08422202,0.00020909,2]
[328169992,1716993038141,-211.93565533,0.00020909,2]
[328169994,1716993038151,-574.08422202,0.00020909,2]
[328169996,1716993038161,-574.08422202,0.00020909,2]
[328169998,1716993038171,-344.06323947,0.00020909,2]
[328170000,1716993038184,-230.02098255,0.00020909,2]
[328170002,1716993038194,-574.08422202,0.00020909,2]
[328170004,1716993038203,-465.60104146,0.00020909,2]
[328170006,1716993038213,-574.08422202,0.00020909,2]
[328170008,1716993038222,-574.08422202,0.00020909,2]
[328170010,1716993038232,-574.08422202,0.00020909,2]
[328170012,1716993038241,-574.08422202,0.00020909,2]
[328170014,1716993038250,-574.08422202,0.00020909,2]
[328170016,1716993038260,-574.08422202,0.00020909,2]
[328170018,1716993038269,-574.08422202,0.00020909,2]
[328170020,1716993038279,-574.08422202,0.00020909,2]
[328170022,1716993038288,-574.08422202,0.00020909,2]
[328170023,1716993038297,-574.08422202,0.00020909,2]
[328170025,1716993038307,-574.08422202,0.00020909,2]
[328170026,1716993038316,-574.08422202,0.00020909,2]
[328170027,1716993038326,-574.08422202,0.00020909,2]
[328170028,1716993038335,-574.08422202,0.00020909,2]
[328170030,1716993038345,-574.08422202,0.00020909,2]
[328170032,1716993038355,-574.08422202,0.00020909,2]
[328170033,1716993038364,-574.08422202,0.00020909,2]
[328170034,1716993038373,-574.08422202,0.00020909,2]
[328170035,1716993038383,-574.08422202,0.00020909,2]
[328170036,1716993038393,-574.08422202,0.00020909,2]
[328170037,1716993038403,-574.08422202,0.00020909,2]
[328170038,1716993038412,-574.08422202,0.00020909,2]
[328170039,1716993038421,-574.08422202,0.00020909,2]
[328170040,1716993038431,-574.08422202,0.00020909,2]
[328170041,1716993038440,-574.08422202,0.00020909,2]
[328170042,1716993038450,-301.67510798,0.00020909,2]
[328170043,1716993038463,-272.40911404,0.00020909,2]
[328170044,1716993038473,-574.08422202,0.00020909,2]
[328170045,1716993038485,-151.99316715,0.00020909,2]
[328170058,1716993041823,-422.09105487,0.00020909,2]
[328170059,1716993041832,-574.08422202,0.00020909,2]
[328170060,1716993041842,-574.08422202,0.00020909,2]
[328170061,1716993041853,-574.08422202,0.00020909,2]
[328170062,1716993041863,-574.08422202,0.00020909,2]
[328170063,1716993041872,-574.08422202,0.00020909,2]
[328170064,1716993041882,-574.08422202,0.00020909,2]
[328170065,1716993041891,-574.08422202,0.00020909,2]
[328170066,1716993041901,-960.43880259,0.000329,3]
[328170067,1716993041910,-13428.88058838,0.0003291,5]
[328170068,1716993042062,-6277.91952054,0.0003291,5]
[328170069,1716993042073,-4514.59,0.00033,3]
[328170070,1716993042087,-160.38277884,0.00033,7]
[328170071,1716993042096,-10421.01486645,0.00033009,4]
[328170072,1716993042105,-3166.38410437,0.0003301,7]
[328170073,1716993042117,-3662.60679389,0.0003301,7]
[328170090,1716993043516,-3030.16786851,0.0003301,7]
[328170132,1716993046420,-34591.57612627,0.0003301,7]
[328170136,1716993065985,-156.8699674,0.00019178,2]
[328170146,1716993102132,-10822.11944856,0.00020908,2]
[328170147,1716993102160,-500.0,0.00020909,2]
[328170148,1716993102188,-500.0,0.00020909,2]
[328170149,1716993102212,-500.0,0.00020909,2]
[328170150,1716993102238,-500.0,0.00020909,2]
[328170151,1716993102264,-500.0,0.00020909,2]
[328170152,1716993102294,-500.0,0.00020909,2]
[328170153,1716993102322,-500.0,0.00020909,2]
[328170154,1716993102349,-500.0,0.00020909,2]
[328170155,1716993102380,-500.0,0.00020909,2]
[328170156,1716993102408,-500.0,0.00020909,2]
[328170157,1716993102436,-500.0,0.00020909,2]
[328170158,1716993102462,-500.0,0.00020909,2]
[328170159,1716993102487,-500.0,0.00020909,2]
[328170160,1716993102512,-500.0,0.00020909,2]
[328170161,1716993102539,-500.0,0.00020909,2]
[328170162,1716993102564,-500.0,0.00020909,2]
[328170163,1716993102590,-500.0,0.00020909,2]
[328170164,1716993102616,-500.0,0.00020909,2]
[328170165,1716993102641,-500.0,0.00020909,2]
[328170166,1716993102666,-500.0,0.00020909,2]
[328170167,1716993102690,-500.0,0.00020909,2]
[328170168,1716993102716,-500.0,0.00020909,2]
[328170169,1716993102742,-500.0,0.00020909,2]
[328170170,1716993102767,-500.0,0.00020909,2]
[328170171,1716993102790,-500.0,0.00020909,2]
[328170172,1716993102815,-500.0,0.00020909,2]
[328170173,1716993102840,-172.49926102,0.00020909,2]
[328170174,1716993102866,-500.0,0.00020909,2]
[328170175,1716993102891,-500.0,0.00020909,2]
[328170176,1716993102922,-500.0,0.00020909,2]
[328170177,1716993102947,-500.0,0.00020909,2]
[328170178,1716993102972,-276.21924881,0.00020909,2]
[328170211,1716994035124,-232.22743353,0.00018886,2]
[328170212,1716994044178,-461.05611801,0.00018886,2]
[328170213,1716994047151,-2109.94083119,0.00018885,2]
[328170214,1716994047173,-1286.76837904,0.00018886,2]
[328170215,1716994047192,-2033.20251904,0.00018887,2]
[328170216,1716994047212,-160.41800126,0.000189,2]
[328170217,1716994047233,-1376.6831049,0.00018903,2]
[328170218,1716994047253,-4120.13440649,0.00018999,2]
[328170219,1716994051501,-37905.00203808,0.00018999,2]
[328170220,1716994051524,-11887.12556042,0.00019,2]
[328170221,1716994146118,-1054.95546333,0.00019,2]
[328170238,1716994234426,-11957.91897625,0.00019,2]
[328170240,1716994234436,-369.67496178,0.0001948,2]
[328170242,1716994234482,-612.735,0.0001948,2]
[328170265,1716994239217,-366.61690512,0.0001948,2]
[328170266,1716994239228,-1755.94292763,0.000205,5]
[328170268,1716994239237,-160.41800126,0.00020813,2]
[328170270,1716994239247,-500.0,0.00020913,2]
[328170272,1716994239257,-500.0,0.00020913,2]
[328170274,1716994239266,-500.0,0.00020913,2]
[328170275,1716994239275,-500.0,0.00020913,2]
[328170277,1716994239284,-500.0,0.00020913,2]
[328170279,1716994239293,-400.0,0.00020913,2]
[328170281,1716994239302,-500.0,0.00020913,2]
[328170283,1716994239312,-5.29988818,0.00020913,2]
[328170311,1716994239595,-494.70011182,0.00020913,2]
[328170313,1716994239605,-500.0,0.00020913,2]
[328170315,1716994239615,-500.0,0.00020913,2]
[328170317,1716994239625,-500.0,0.00020913,2]
[328170319,1716994239635,-500.0,0.00020913,2]
[328170321,1716994239645,-412.32404605,0.00020913,2]
[328170323,1716994239658,-87.67595395,0.00020913,2]
[328170325,1716994239668,-496.14457771,0.00020913,2]
[328170331,1716994239762,-3.85542229,0.00020913,2]
[328170332,1716994239771,-500.0,0.00020913,2]
[328170333,1716994239781,-437.58068022,0.00020913,2]
[328170334,1716994239855,-62.41931978,0.00020913,2]
[328170335,1716994239865,-500.0,0.00020913,2]
[328170336,1716994239875,-500.0,0.00020913,2]
[328170337,1716994239886,-500.0,0.00020913,2]
[328170338,1716994239896,-500.0,0.00020913,2]
[328170339,1716994239907,-500.0,0.00020913,2]
[328170340,1716994239916,-64.27800455,0.00020913,2]
[328170396,1716994241965,-435.72199545,0.00020913,2]
[328170397,1716994241976,-500.0,0.00020913,2]
[328170399,1716994241985,-500.0,0.00020913,2]
[328170401,1716994241995,-500.0,0.00020913,2]
[328170402,1716994242005,-500.0,0.00020913,2]
[328170404,1716994242014,-500.0,0.00020913,2]
[328170406,1716994242024,-500.0,0.00020913,2]
[328170408,1716994242033,-500.0,0.00020913,2]
[328170409,1716994242042,-500.0,0.00020913,2]
[328170410,1716994242051,-463.5806966,0.00020913,2]
[328170411,1716994242061,-500.0,0.00020913,2]
[328170412,1716994242070,-500.0,0.00020913,2]
[328170413,1716994242079,-500.0,0.00020913,2]
[328170414,1716994242088,-500.0,0.00020913,2]
[328170415,1716994242098,-500.0,0.00020913,2]
[328170416,1716994242107,-500.0,0.00020913,2]
[328170417,1716994242117,-500.0,0.00020913,2]
[328170418,1716994242127,-500.0,0.00020913,2]
[328170419,1716994242136,-500.0,0.00020913,2]
[328170420,1716994242145,-500.0,0.00020913,2]
[328170421,1716994242154,-206.73567151,0.00020913,2]
[328170422,1716994242167,-293.26432849,0.00020913,2]
[328170423,1716994242176,-227.0205301,0.00020913,2]
[328170424,1716994242212,-257.24181842,0.00020913,2]
[328170425,1716994242221,-500.0,0.00020913,2]
[328170426,1716994242231,-500.0,0.00020913,2]
[328170427,1716994242240,-166.666666,0.00021918,2]
[328170428,1716994242249,-166.666666,0.00022431,2]
[328170429,1716994242261,-2033.20251904,0.00022738,2]
[328170430,1716994242270,-166.666666,0.00022944,2]
[328170431,1716994242279,-166.666666,0.00023456,2]
[328170432,1716994242288,-166.666666,0.00023969,2]
[328170433,1716994242297,-160.495791,0.00024384,2]
[328170434,1716994242306,-589.781274,0.00024384,2]
[328170435,1716994242315,-166.666666,0.00024482,2]
[328170436,1716994242324,-425.46752422,0.00024681,2]
[328170437,1716994242334,-181.96046936,0.000247,9]
[328170438,1716994242344,-1137.73079074,0.00024756,2]
[328170439,1716994242353,-631.30560866,0.00024988,3]
[328170466,1716994243715,-168.59439134,0.00024988,3]
[328170468,1716994243724,-7584.75,0.0002499,3]
[328170470,1716994243734,-6320.62,0.0002499,3]
[328170471,1716994243743,-1235.70263295,0.00024998,2]
[328170474,1716994243756,-4017.31128536,0.00024998,2]
[328170476,1716994243768,-25764.37564973,0.00024998,2]
[328170477,1716994243776,-12183.78217054,0.00024998,2]
[328170535,1716994246342,-995.44352211,0.00024998,2]
[328170536,1716994246351,-1416.26327429,0.00024999,2]
[328170538,1716994246360,-1814.96172787,0.00024999,2]
[328170540,1716994246370,-3226.29834835,0.00025,5]
[328170546,1716994247024,-12124.27022932,0.00025,5]
[328170547,1716994319697,154.84515485,0.00018749,2]
[328170548,1716994328895,173.95546905,9.999e-05,2]
[328170553,1716994343904,-511.51791871,9.999e-05,2]
[328170554,1716994343941,-982.88563589,0.00018749,2]
[328170555,1716994343979,-302.71490703,0.00020912,2]
[328170556,1716994344022,-500.0,0.00020913,2]
[328170557,1716994344065,-500.0,0.00020913,2]
[328170558,1716994344110,-500.0,0.00020913,2]
[328170559,1716994344150,-500.0,0.00020913,2]
[328170560,1716994344191,-500.0,0.00020913,2]
[328170561,1716994344231,-500.0,0.00020913,2]
[328170562,1716994344271,-500.0,0.00020913,2]
[328170563,1716994344311,-500.0,0.00020913,2]
[328170564,1716994344351,-500.0,0.00020913,2]
[328170565,1716994344393,-234.35986242,0.00020913,2]
[328170567,1716994344433,-500.0,0.00020913,2]
[328170568,1716994344474,-500.0,0.00020913,2]
[328170569,1716994344517,-500.0,0.00020913,2]
[328170570,1716994344552,-267.45434469,0.00020913,2]
[328170571,1716994344589,-167.50180732,0.00020913,2]
[328170572,1716994344626,-420.0,0.00020913,2]
[328170573,1716994344667,-419.56030946,0.00020913,2]
[328170575,1716994347970,173.95546905,0.00018747,2]
[328170579,1716994358351,12688.12310063,0.00020913,2]
[328170582,1716994754517,242.0,0.00022,10]
[328170585,1716995243158,-412.70094149,0.00018562,2]
[328170587,1716995354165,-198.9581136,0.00018563,2]
[328170588,1716995354187,-4458.22064314,0.00019328,2]
[328170642,1716995432571,-160.41800126,0.0001923,2]
[328170644,1716995432581,-303.34858234,0.00019302,2]
[328170646,1716995432593,-24596.65141766,0.00019302,2]
[328170648,1716995432603,-3446.13016816,0.00019328,2]
[328170650,1716995432612,-2033.20251904,0.00019329,2]
[328170652,1716995432621,-795.4018015,0.0001933,2]
[328170654,1716995432630,-990.32991816,0.00019791,2]
[328170766,1716995438466,-197.22406104,0.00019791,2]
[328170768,1716995438476,-189.84803191,0.00020808,2]
[328170770,1716995438485,-486.0,0.00020902,3]
[328170771,1716995438495,-412.70094149,0.0002091,2]
[328170772,1716995438504,-589.07420898,0.00020911,2]
[328170773,1716995438514,-500.0,0.00020911,2]
[328170774,1716995438526,-420.0,0.00020911,2]
[328170775,1716995438536,-500.0,0.00020911,2]
[328170776,1716995438545,-500.0,0.00020911,2]
[328170777,1716995438555,-500.0,0.00020911,2]
[328170778,1716995438564,-500.0,0.00020911,2]
[328170779,1716995438574,-500.0,0.00020911,2]
[328170780,1716995438583,-500.0,0.00020911,2]
[328170781,1716995438593,-433.8419555,0.00020911,2]
[328170782,1716995438603,-500.0,0.00020911,2]
[328170783,1716995438612,-500.0,0.00020911,2]
[328170784,1716995438621,-500.0,0.00020911,2]
[328170785,1716995438631,-500.0,0.00020911,2]
[328170786,1716995438640,-500.0,0.00020911,2]
[328170787,1716995438649,-500.0,0.00020911,2]
[328170788,1716995438659,-550.0,0.00020911,2]
[328170789,1716995438669,-500.0,0.00020911,2]
[328170790,1716995438678,-500.0,0.00020911,2]
[328170791,1716995438688,-320.74948271,0.00020911,2]
[328170792,1716995438698,-500.0,0.00020911,2]
[328170793,1716995438707,-500.0,0.00020911,2]
[328170794,1716995438716,-509.32608803,0.00020911,2]
[328170795,1716995438726,-57712.64387214,0.00020912,2]
[328170796,1716995438736,-166.666666,0.00021918,2]
[328170797,1716995438745,-166.666666,0.00022431,2]
[328170799,1716995438755,-166.666666,0.00022944,2]
[328170800,1716995438765,-166.666666,0.00023456,2]
[328170801,1716995438778,-230.86074497,0.00023773,7]
[328170802,1716995438788,-55755.43820947,0.00023774,2]
[328170803,1716995438799,-166.666666,0.00023969,2]
[328170804,1716995438811,-160.495791,0.00024384,2]
[328170805,1716995438821,-560.29221,0.00024384,2]
[328170806,1716995438831,-166.666666,0.00024482,2]